Workbook

Sheet Main Calculator
A1: Vehicle Cost Comparison Calculator
A2: Rental Vehicle vs Private Vehicle
B4: ENTER AMOUNTS IN YELLOW-HIGHLIGHTED FIELDS
A6: Trip Information
A7: Roundtrip mileage (per Google Maps or MapQuest)
A8: Total days of rental
A9: Standard Auto | B9: - total estimated rental rate | C9: =VLOOKUP(A9,Sheet1!A2:C5,2) -> 38
A10: Cost per gallon of gasoline
A11: Mileage reimbursement rate | C11: 0.67
A12: =A9 -> Standard Auto | B12: - miles per gallon of gasoline (MPG) | C12: =VLOOKUP(A9,Sheet1!A2:C5,3) -> 28
A14: =IF(OR(A12=Sheet1!A2,A12=Sheet1!A3),"PROVIDE JUSTIFICATION FOR NEED OF 12/15 PASSENGER VAN",IF(A12=Sheet1!A4,"PROVIDE JUSTIFICATION FOR NEED FOR PICKUP TRUCK","")) -> 
A16: Calculated Results
A18: Personal Vehicle Reimbursement Cost
A19: Mileage | C19: =C7*C11 -> 0
A21: Total | C21: =C19 -> 0
A23: Auto Rental Cost
A24: Rental | C24: =C9*C8 -> 0
A25: Refueling | C25: =(C7/C12)*C10 -> 0
A27: Total | C27: =C24+C25 -> 0
A31: Instructions for Entering Trip Information (yellow fields only)
A32: Enter the roundtrip mileage.
A33: Enter the number of days the vehicle will be rented.
A34: Enter the cost per gallon of gasoline.
A35: Enter airport parking amount to be claimed for personal vehicle.
E36: Personal Vehicle Reimbursement Cost: | I36: =C21 -> 0
E38: Auto Rental Cost: | I38: =C27 -> 0
B40: If the Auto Rental Cost is less than the Personal Vehicle Reimbursement Cost, then the Auto Rental Cost is the reimbursable amount. | L40: 2024-01-04

Sheet Sheet1 (hidden)
A1: Vehicle Class | B1: Daily Rate | C1: Miles per Gallon
A2: 12 Passenger Van | B2: 125 | C2: 16
A3: 15 Passenger Van | B3: 125 | C3: 16
A4: Pickup Truck | B4: 79 | C4: 18
A5: Standard Auto | B5: 38 | C5: 28

Sheet Supporting Graph Data (hidden)
C4: Miles | D4: Reimburse | E4: Rent
C5: 0 | D5: =C5*'Main Calculator'!$C$11 -> 0 | E5: ='Main Calculator'!$C$9*'Main Calculator'!$C$8+(C5/'Main Calculator'!$C$12*'Main Calculator'!$C$10) -> 0
C6: 5 | D6: =C6*'Main Calculator'!$C$11 -> 3.35 | E6: ='Main Calculator'!$C$9*'Main Calculator'!$C$8+(C6/'Main Calculator'!$C$12*'Main Calculator'!$C$10) -> 0
C7: 10 | D7: =C7*'Main Calculator'!$C$11 -> 6.7 | E7: ='Main Calculator'!$C$9*'Main Calculator'!$C$8+(C7/'Main Calculator'!$C$12*'Main Calculator'!$C$10) -> 0
C8: 15 | D8: =C8*'Main Calculator'!$C$11 -> 10.05 | E8: ='Main Calculator'!$C$9*'Main Calculator'!$C$8+(C8/'Main Calculator'!$C$12*'Main Calculator'!$C$10) -> 0
C9: 20 | D9: =C9*'Main Calculator'!$C$11 -> 13.4 | E9: ='Main Calculator'!$C$9*'Main Calculator'!$C$8+(C9/'Main Calculator'!$C$12*'Main Calculator'!$C$10) -> 0
C10: 25 | D10: =C10*'Main Calculator'!$C$11 -> 16.75 | E10: ='Main Calculator'!$C$9*'Main Calculator'!$C$8+(C10/'Main Calculator'!$C$12*'Main Calculator'!$C$10) -> 0
C11: 30 | D11: =C11*'Main Calculator'!$C$11 -> 20.1 | E11: ='Main Calculator'!$C$9*'Main Calculator'!$C$8+(C11/'Main Calculator'!$C$12*'Main Calculator'!$C$10) -> 0
C12: 35 | D12: =C12*'Main Calculator'!$C$11 -> 23.45 | E12: ='Main Calculator'!$C$9*'Main Calculator'!$C$8+(C12/'Main Calculator'!$C$12*'Main Calculator'!$C$10) -> 0
C13: 40 | D13: =C13*'Main Calculator'!$C$11 -> 26.8 | E13: ='Main Calculator'!$C$9*'Main Calculator'!$C$8+(C13/'Main Calculator'!$C$12*'Main Calculator'!$C$10) -> 0
C14: 45 | D14: =C14*'Main Calculator'!$C$11 -> 30.15 | E14: ='Main Calculator'!$C$9*'Main Calculator'!$C$8+(C14/'Main Calculator'!$C$12*'Main Calculator'!$C$10) -> 0
C15: 50 | D15: =C15*'Main Calculator'!$C$11 -> 33.5 | E15: ='Main Calculator'!$C$9*'Main Calculator'!$C$8+(C15/'Main Calculator'!$C$12*'Main Calculator'!$C$10) -> 0
C16: 55 | D16: =C16*'Main Calculator'!$C$11 -> 36.85 | E16: ='Main Calculator'!$C$9*'Main Calculator'!$C$8+(C16/'Main Calculator'!$C$12*'Main Calculator'!$C$10) -> 0
C17: 60 | D17: =C17*'Main Calculator'!$C$11 -> 40.2 | E17: ='Main Calculator'!$C$9*'Main Calculator'!$C$8+(C17/'Main Calculator'!$C$12*'Main Calculator'!$C$10) -> 0
C18: 65 | D18: =C18*'Main Calculator'!$C$11 -> 43.55 | E18: ='Main Calculator'!$C$9*'Main Calculator'!$C$8+(C18/'Main Calculator'!$C$12*'Main Calculator'!$C$10) -> 0
C19: 70 | D19: =C19*'Main Calculator'!$C$11 -> 46.9 | E19: ='Main Calculator'!$C$9*'Main Calculator'!$C$8+(C19/'Main Calculator'!$C$12*'Main Calculator'!$C$10) -> 0
C20: 75 | D20: =C20*'Main Calculator'!$C$11 -> 50.25 | E20: ='Main Calculator'!$C$9*'Main Calculator'!$C$8+(C20/'Main Calculator'!$C$12*'Main Calculator'!$C$10) -> 0
C21: 80 | D21: =C21*'Main Calculator'!$C$11 -> 53.6 | E21: ='Main Calculator'!$C$9*'Main Calculator'!$C$8+(C21/'Main Calculator'!$C$12*'Main Calculator'!$C$10) -> 0
C22: 85 | D22: =C22*'Main Calculator'!$C$11 -> 56.95 | E22: ='Main Calculator'!$C$9*'Main Calculator'!$C$8+(C22/'Main Calculator'!$C$12*'Main Calculator'!$C$10) -> 0
C23: 90 | D23: =C23*'Main Calculator'!$C$11 -> 60.3 | E23: ='Main Calculator'!$C$9*'Main Calculator'!$C$8+(C23/'Main Calculator'!$C$12*'Main Calculator'!$C$10) -> 0
C24: 95 | D24: =C24*'Main Calculator'!$C$11 -> 63.65 | E24: ='Main Calculator'!$C$9*'Main Calculator'!$C$8+(C24/'Main Calculator'!$C$12*'Main Calculator'!$C$10) -> 0
C25: 100 | D25: =C25*'Main Calculator'!$C$11 -> 67 | E25: ='Main Calculator'!$C$9*'Main Calculator'!$C$8+(C25/'Main Calculator'!$C$12*'Main Calculator'!$C$10) -> 0
C26: 105 | D26: =C26*'Main Calculator'!$C$11 -> 70.35 | E26: ='Main Calculator'!$C$9*'Main Calculator'!$C$8+(C26/'Main Calculator'!$C$12*'Main Calculator'!$C$10) -> 0
C27: 110 | D27: =C27*'Main Calculator'!$C$11 -> 73.7 | E27: ='Main Calculator'!$C$9*'Main Calculator'!$C$8+(C27/'Main Calculator'!$C$12*'Main Calculator'!$C$10) -> 0
C28: 115 | D28: =C28*'Main Calculator'!$C$11 -> 77.05 | E28: ='Main Calculator'!$C$9*'Main Calculator'!$C$8+(C28/'Main Calculator'!$C$12*'Main Calculator'!$C$10) -> 0
C29: 120 | D29: =C29*'Main Calculator'!$C$11 -> 80.4 | E29: ='Main Calculator'!$C$9*'Main Calculator'!$C$8+(C29/'Main Calculator'!$C$12*'Main Calculator'!$C$10) -> 0
C30: 125 | D30: =C30*'Main Calculator'!$C$11 -> 83.75 | E30: ='Main Calculator'!$C$9*'Main Calculator'!$C$8+(C30/'Main Calculator'!$C$12*'Main Calculator'!$C$10) -> 0
C31: 130 | D31: =C31*'Main Calculator'!$C$11 -> 87.1 | E31: ='Main Calculator'!$C$9*'Main Calculator'!$C$8+(C31/'Main Calculator'!$C$12*'Main Calculator'!$C$10) -> 0
C32: 135 | D32: =C32*'Main Calculator'!$C$11 -> 90.45 | E32: ='Main Calculator'!$C$9*'Main Calculator'!$C$8+(C32/'Main Calculator'!$C$12*'Main Calculator'!$C$10) -> 0
C33: 140 | D33: =C33*'Main Calculator'!$C$11 -> 93.8 | E33: ='Main Calculator'!$C$9*'Main Calculator'!$C$8+(C33/'Main Calculator'!$C$12*'Main Calculator'!$C$10) -> 0
C34: 145 | D34: =C34*'Main Calculator'!$C$11 -> 97.15 | E34: ='Main Calculator'!$C$9*'Main Calculator'!$C$8+(C34/'Main Calculator'!$C$12*'Main Calculator'!$C$10) -> 0
C35: 150 | D35: =C35*'Main Calculator'!$C$11 -> 100.5 | E35: ='Main Calculator'!$C$9*'Main Calculator'!$C$8+(C35/'Main Calculator'!$C$12*'Main Calculator'!$C$10) -> 0
C36: 155 | D36: =C36*'Main Calculator'!$C$11 -> 103.85 | E36: ='Main Calculator'!$C$9*'Main Calculator'!$C$8+(C36/'Main Calculator'!$C$12*'Main Calculator'!$C$10) -> 0
C37: 160 | D37: =C37*'Main Calculator'!$C$11 -> 107.2 | E37: ='Main Calculator'!$C$9*'Main Calculator'!$C$8+(C37/'Main Calculator'!$C$12*'Main Calculator'!$C$10) -> 0
C38: 165 | D38: =C38*'Main Calculator'!$C$11 -> 110.55 | E38: ='Main Calculator'!$C$9*'Main Calculator'!$C$8+(C38/'Main Calculator'!$C$12*'Main Calculator'!$C$10) -> 0
C39: 170 | D39: =C39*'Main Calculator'!$C$11 -> 113.9 | E39: ='Main Calculator'!$C$9*'Main Calculator'!$C$8+(C39/'Main Calculator'!$C$12*'Main Calculator'!$C$10) -> 0
C40: 175 | D40: =C40*'Main Calculator'!$C$11 -> 117.25 | E40: ='Main Calculator'!$C$9*'Main Calculator'!$C$8+(C40/'Main Calculator'!$C$12*'Main Calculator'!$C$10) -> 0
C41: 180 | D41: =C41*'Main Calculator'!$C$11 -> 120.6 | E41: ='Main Calculator'!$C$9*'Main Calculator'!$C$8+(C41/'Main Calculator'!$C$12*'Main Calculator'!$C$10) -> 0
C42: 185 | D42: =C42*'Main Calculator'!$C$11 -> 123.95 | E42: ='Main Calculator'!$C$9*'Main Calculator'!$C$8+(C42/'Main Calculator'!$C$12*'Main Calculator'!$C$10) -> 0
C43: 190 | D43: =C43*'Main Calculator'!$C$11 -> 127.3 | E43: ='Main Calculator'!$C$9*'Main Calculator'!$C$8+(C43/'Main Calculator'!$C$12*'Main Calculator'!$C$10) -> 0
C44: 195 | D44: =C44*'Main Calculator'!$C$11 -> 130.65 | E44: ='Main Calculator'!$C$9*'Main Calculator'!$C$8+(C44/'Main Calculator'!$C$12*'Main Calculator'!$C$10) -> 0
C45: 200 | D45: =C45*'Main Calculator'!$C$11 -> 134 | E45: ='Main Calculator'!$C$9*'Main Calculator'!$C$8+(C45/'Main Calculator'!$C$12*'Main Calculator'!$C$10) -> 0
C46: 205 | D46: =C46*'Main Calculator'!$C$11 -> 137.35 | E46: ='Main Calculator'!$C$9*'Main Calculator'!$C$8+(C46/'Main Calculator'!$C$12*'Main Calculator'!$C$10) -> 0
C47: 210 | D47: =C47*'Main Calculator'!$C$11 -> 140.7 | E47: ='Main Calculator'!$C$9*'Main Calculator'!$C$8+(C47/'Main Calculator'!$C$12*'Main Calculator'!$C$10) -> 0
C48: 215 | D48: =C48*'Main Calculator'!$C$11 -> 144.05 | E48: ='Main Calculator'!$C$9*'Main Calculator'!$C$8+(C48/'Main Calculator'!$C$12*'Main Calculator'!$C$10) -> 0
C49: 220 | D49: =C49*'Main Calculator'!$C$11 -> 147.4 | E49: ='Main Calculator'!$C$9*'Main Calculator'!$C$8+(C49/'Main Calculator'!$C$12*'Main Calculator'!$C$10) -> 0
C50: 225 | D50: =C50*'Main Calculator'!$C$11 -> 150.75 | E50: ='Main Calculator'!$C$9*'Main Calculator'!$C$8+(C50/'Main Calculator'!$C$12*'Main Calculator'!$C$10) -> 0
C51: 230 | D51: =C51*'Main Calculator'!$C$11 -> 154.1 | E51: ='Main Calculator'!$C$9*'Main Calculator'!$C$8+(C51/'Main Calculator'!$C$12*'Main Calculator'!$C$10) -> 0
C52: 235 | D52: =C52*'Main Calculator'!$C$11 -> 157.45 | E52: ='Main Calculator'!$C$9*'Main Calculator'!$C$8+(C52/'Main Calculator'!$C$12*'Main Calculator'!$C$10) -> 0
C53: 240 | D53: =C53*'Main Calculator'!$C$11 -> 160.8 | E53: ='Main Calculator'!$C$9*'Main Calculator'!$C$8+(C53/'Main Calculator'!$C$12*'Main Calculator'!$C$10) -> 0
C54: 245 | D54: =C54*'Main Calculator'!$C$11 -> 164.15 | E54: ='Main Calculator'!$C$9*'Main Calculator'!$C$8+(C54/'Main Calculator'!$C$12*'Main Calculator'!$C$10) -> 0
C55: 250 | D55: =C55*'Main Calculator'!$C$11 -> 167.5 | E55: ='Main Calculator'!$C$9*'Main Calculator'!$C$8+(C55/'Main Calculator'!$C$12*'Main Calculator'!$C$10) -> 0
C56: 255 | D56: =C56*'Main Calculator'!$C$11 -> 170.85 | E56: ='Main Calculator'!$C$9*'Main Calculator'!$C$8+(C56/'Main Calculator'!$C$12*'Main Calculator'!$C$10) -> 0
C57: 260 | D57: =C57*'Main Calculator'!$C$11 -> 174.2 | E57: ='Main Calculator'!$C$9*'Main Calculator'!$C$8+(C57/'Main Calculator'!$C$12*'Main Calculator'!$C$10) -> 0
C58: 265 | D58: =C58*'Main Calculator'!$C$11 -> 177.55 | E58: ='Main Calculator'!$C$9*'Main Calculator'!$C$8+(C58/'Main Calculator'!$C$12*'Main Calculator'!$C$10) -> 0
C59: 270 | D59: =C59*'Main Calculator'!$C$11 -> 180.9 | E59: ='Main Calculator'!$C$9*'Main Calculator'!$C$8+(C59/'Main Calculator'!$C$12*'Main Calculator'!$C$10) -> 0
C60: 275 | D60: =C60*'Main Calculator'!$C$11 -> 184.25 | E60: ='Main Calculator'!$C$9*'Main Calculator'!$C$8+(C60/'Main Calculator'!$C$12*'Main Calculator'!$C$10) -> 0
C61: 280 | D61: =C61*'Main Calculator'!$C$11 -> 187.6 | E61: ='Main Calculator'!$C$9*'Main Calculator'!$C$8+(C61/'Main Calculator'!$C$12*'Main Calculator'!$C$10) -> 0
C62: 285 | D62: =C62*'Main Calculator'!$C$11 -> 190.95 | E62: ='Main Calculator'!$C$9*'Main Calculator'!$C$8+(C62/'Main Calculator'!$C$12*'Main Calculator'!$C$10) -> 0
C63: 290 | D63: =C63*'Main Calculator'!$C$11 -> 194.3 | E63: ='Main Calculator'!$C$9*'Main Calculator'!$C$8+(C63/'Main Calculator'!$C$12*'Main Calculator'!$C$10) -> 0
C64: 295 | D64: =C64*'Main Calculator'!$C$11 -> 197.65 | E64: ='Main Calculator'!$C$9*'Main Calculator'!$C$8+(C64/'Main Calculator'!$C$12*'Main Calculator'!$C$10) -> 0
C65: 300 | D65: =C65*'Main Calculator'!$C$11 -> 201 | E65: ='Main Calculator'!$C$9*'Main Calculator'!$C$8+(C65/'Main Calculator'!$C$12*'Main Calculator'!$C$10) -> 0
C66: 305 | D66: =C66*'Main Calculator'!$C$11 -> 204.35 | E66: ='Main Calculator'!$C$9*'Main Calculator'!$C$8+(C66/'Main Calculator'!$C$12*'Main Calculator'!$C$10) -> 0
C67: 310 | D67: =C67*'Main Calculator'!$C$11 -> 207.7 | E67: ='Main Calculator'!$C$9*'Main Calculator'!$C$8+(C67/'Main Calculator'!$C$12*'Main Calculator'!$C$10) -> 0
C68: 315 | D68: =C68*'Main Calculator'!$C$11 -> 211.05 | E68: ='Main Calculator'!$C$9*'Main Calculator'!$C$8+(C68/'Main Calculator'!$C$12*'Main Calculator'!$C$10) -> 0
C69: 320 | D69: =C69*'Main Calculator'!$C$11 -> 214.4 | E69: ='Main Calculator'!$C$9*'Main Calculator'!$C$8+(C69/'Main Calculator'!$C$12*'Main Calculator'!$C$10) -> 0
C70: 325 | D70: =C70*'Main Calculator'!$C$11 -> 217.75 | E70: ='Main Calculator'!$C$9*'Main Calculator'!$C$8+(C70/'Main Calculator'!$C$12*'Main Calculator'!$C$10) -> 0
C71: 330 | D71: =C71*'Main Calculator'!$C$11 -> 221.1 | E71: ='Main Calculator'!$C$9*'Main Calculator'!$C$8+(C71/'Main Calculator'!$C$12*'Main Calculator'!$C$10) -> 0
C72: 335 | D72: =C72*'Main Calculator'!$C$11 -> 224.45 | E72: ='Main Calculator'!$C$9*'Main Calculator'!$C$8+(C72/'Main Calculator'!$C$12*'Main Calculator'!$C$10) -> 0
C73: 340 | D73: =C73*'Main Calculator'!$C$11 -> 227.8 | E73: ='Main Calculator'!$C$9*'Main Calculator'!$C$8+(C73/'Main Calculator'!$C$12*'Main Calculator'!$C$10) -> 0
C74: 345 | D74: =C74*'Main Calculator'!$C$11 -> 231.15 | E74: ='Main Calculator'!$C$9*'Main Calculator'!$C$8+(C74/'Main Calculator'!$C$12*'Main Calculator'!$C$10) -> 0
C75: 350 | D75: =C75*'Main Calculator'!$C$11 -> 234.5 | E75: ='Main Calculator'!$C$9*'Main Calculator'!$C$8+(C75/'Main Calculator'!$C$12*'Main Calculator'!$C$10) -> 0
C76: 355 | D76: =C76*'Main Calculator'!$C$11 -> 237.85 | E76: ='Main Calculator'!$C$9*'Main Calculator'!$C$8+(C76/'Main Calculator'!$C$12*'Main Calculator'!$C$10) -> 0
C77: 360 | D77: =C77*'Main Calculator'!$C$11 -> 241.2 | E77: ='Main Calculator'!$C$9*'Main Calculator'!$C$8+(C77/'Main Calculator'!$C$12*'Main Calculator'!$C$10) -> 0
C78: 365 | D78: =C78*'Main Calculator'!$C$11 -> 244.55 | E78: ='Main Calculator'!$C$9*'Main Calculator'!$C$8+(C78/'Main Calculator'!$C$12*'Main Calculator'!$C$10) -> 0
C79: 370 | D79: =C79*'Main Calculator'!$C$11 -> 247.9 | E79: ='Main Calculator'!$C$9*'Main Calculator'!$C$8+(C79/'Main Calculator'!$C$12*'Main Calculator'!$C$10) -> 0
C80: 375 | D80: =C80*'Main Calculator'!$C$11 -> 251.25 | E80: ='Main Calculator'!$C$9*'Main Calculator'!$C$8+(C80/'Main Calculator'!$C$12*'Main Calculator'!$C$10) -> 0
C81: 380 | D81: =C81*'Main Calculator'!$C$11 -> 254.6 | E81: ='Main Calculator'!$C$9*'Main Calculator'!$C$8+(C81/'Main Calculator'!$C$12*'Main Calculator'!$C$10) -> 0
C82: 385 | D82: =C82*'Main Calculator'!$C$11 -> 257.95 | E82: ='Main Calculator'!$C$9*'Main Calculator'!$C$8+(C82/'Main Calculator'!$C$12*'Main Calculator'!$C$10) -> 0
C83: 390 | D83: =C83*'Main Calculator'!$C$11 -> 261.3 | E83: ='Main Calculator'!$C$9*'Main Calculator'!$C$8+(C83/'Main Calculator'!$C$12*'Main Calculator'!$C$10) -> 0
C84: 395 | D84: =C84*'Main Calculator'!$C$11 -> 264.65 | E84: ='Main Calculator'!$C$9*'Main Calculator'!$C$8+(C84/'Main Calculator'!$C$12*'Main Calculator'!$C$10) -> 0
C85: 400 | D85: =C85*'Main Calculator'!$C$11 -> 268 | E85: ='Main Calculator'!$C$9*'Main Calculator'!$C$8+(C85/'Main Calculator'!$C$12*'Main Calculator'!$C$10) -> 0
C86: 405 | D86: =C86*'Main Calculator'!$C$11 -> 271.35 | E86: ='Main Calculator'!$C$9*'Main Calculator'!$C$8+(C86/'Main Calculator'!$C$12*'Main Calculator'!$C$10) -> 0
C87: 410 | D87: =C87*'Main Calculator'!$C$11 -> 274.7 | E87: ='Main Calculator'!$C$9*'Main Calculator'!$C$8+(C87/'Main Calculator'!$C$12*'Main Calculator'!$C$10) -> 0
C88: 415 | D88: =C88*'Main Calculator'!$C$11 -> 278.05 | E88: ='Main Calculator'!$C$9*'Main Calculator'!$C$8+(C88/'Main Calculator'!$C$12*'Main Calculator'!$C$10) -> 0
C89: 420 | D89: =C89*'Main Calculator'!$C$11 -> 281.4 | E89: ='Main Calculator'!$C$9*'Main Calculator'!$C$8+(C89/'Main Calculator'!$C$12*'Main Calculator'!$C$10) -> 0
C90: 425 | D90: =C90*'Main Calculator'!$C$11 -> 284.75 | E90: ='Main Calculator'!$C$9*'Main Calculator'!$C$8+(C90/'Main Calculator'!$C$12*'Main Calculator'!$C$10) -> 0
C91: 430 | D91: =C91*'Main Calculator'!$C$11 -> 288.1 | E91: ='Main Calculator'!$C$9*'Main Calculator'!$C$8+(C91/'Main Calculator'!$C$12*'Main Calculator'!$C$10) -> 0
C92: 435 | D92: =C92*'Main Calculator'!$C$11 -> 291.45 | E92: ='Main Calculator'!$C$9*'Main Calculator'!$C$8+(C92/'Main Calculator'!$C$12*'Main Calculator'!$C$10) -> 0
C93: 440 | D93: =C93*'Main Calculator'!$C$11 -> 294.8 | E93: ='Main Calculator'!$C$9*'Main Calculator'!$C$8+(C93/'Main Calculator'!$C$12*'Main Calculator'!$C$10) -> 0
C94: 445 | D94: =C94*'Main Calculator'!$C$11 -> 298.15 | E94: ='Main Calculator'!$C$9*'Main Calculator'!$C$8+(C94/'Main Calculator'!$C$12*'Main Calculator'!$C$10) -> 0
C95: 450 | D95: =C95*'Main Calculator'!$C$11 -> 301.5 | E95: ='Main Calculator'!$C$9*'Main Calculator'!$C$8+(C95/'Main Calculator'!$C$12*'Main Calculator'!$C$10) -> 0
C96: 455 | D96: =C96*'Main Calculator'!$C$11 -> 304.85 | E96: ='Main Calculator'!$C$9*'Main Calculator'!$C$8+(C96/'Main Calculator'!$C$12*'Main Calculator'!$C$10) -> 0
C97: 460 | D97: =C97*'Main Calculator'!$C$11 -> 308.2 | E97: ='Main Calculator'!$C$9*'Main Calculator'!$C$8+(C97/'Main Calculator'!$C$12*'Main Calculator'!$C$10) -> 0
C98: 465 | D98: =C98*'Main Calculator'!$C$11 -> 311.55 | E98: ='Main Calculator'!$C$9*'Main Calculator'!$C$8+(C98/'Main Calculator'!$C$12*'Main Calculator'!$C$10) -> 0
C99: 470 | D99: =C99*'Main Calculator'!$C$11 -> 314.9 | E99: ='Main Calculator'!$C$9*'Main Calculator'!$C$8+(C99/'Main Calculator'!$C$12*'Main Calculator'!$C$10) -> 0
C100: 475 | D100: =C100*'Main Calculator'!$C$11 -> 318.25 | E100: ='Main Calculator'!$C$9*'Main Calculator'!$C$8+(C100/'Main Calculator'!$C$12*'Main Calculator'!$C$10) -> 0
C101: 480 | D101: =C101*'Main Calculator'!$C$11 -> 321.6 | E101: ='Main Calculator'!$C$9*'Main Calculator'!$C$8+(C101/'Main Calculator'!$C$12*'Main Calculator'!$C$10) -> 0
C102: 485 | D102: =C102*'Main Calculator'!$C$11 -> 324.95 | E102: ='Main Calculator'!$C$9*'Main Calculator'!$C$8+(C102/'Main Calculator'!$C$12*'Main Calculator'!$C$10) -> 0
C103: 490 | D103: =C103*'Main Calculator'!$C$11 -> 328.3 | E103: ='Main Calculator'!$C$9*'Main Calculator'!$C$8+(C103/'Main Calculator'!$C$12*'Main Calculator'!$C$10) -> 0
C104: 495 | D104: =C104*'Main Calculator'!$C$11 -> 331.65 | E104: ='Main Calculator'!$C$9*'Main Calculator'!$C$8+(C104/'Main Calculator'!$C$12*'Main Calculator'!$C$10) -> 0
C105: 500 | D105: =C105*'Main Calculator'!$C$11 -> 335 | E105: ='Main Calculator'!$C$9*'Main Calculator'!$C$8+(C105/'Main Calculator'!$C$12*'Main Calculator'!$C$10) -> 0
C106: 505 | D106: =C106*'Main Calculator'!$C$11 -> 338.35 | E106: ='Main Calculator'!$C$9*'Main Calculator'!$C$8+(C106/'Main Calculator'!$C$12*'Main Calculator'!$C$10) -> 0
C107: 510 | D107: =C107*'Main Calculator'!$C$11 -> 341.7 | E107: ='Main Calculator'!$C$9*'Main Calculator'!$C$8+(C107/'Main Calculator'!$C$12*'Main Calculator'!$C$10) -> 0
C108: 515 | D108: =C108*'Main Calculator'!$C$11 -> 345.05 | E108: ='Main Calculator'!$C$9*'Main Calculator'!$C$8+(C108/'Main Calculator'!$C$12*'Main Calculator'!$C$10) -> 0
C109: 520 | D109: =C109*'Main Calculator'!$C$11 -> 348.4 | E109: ='Main Calculator'!$C$9*'Main Calculator'!$C$8+(C109/'Main Calculator'!$C$12*'Main Calculator'!$C$10) -> 0
C110: 525 | D110: =C110*'Main Calculator'!$C$11 -> 351.75 | E110: ='Main Calculator'!$C$9*'Main Calculator'!$C$8+(C110/'Main Calculator'!$C$12*'Main Calculator'!$C$10) -> 0
C111: 530 | D111: =C111*'Main Calculator'!$C$11 -> 355.1 | E111: ='Main Calculator'!$C$9*'Main Calculator'!$C$8+(C111/'Main Calculator'!$C$12*'Main Calculator'!$C$10) -> 0
C112: 535 | D112: =C112*'Main Calculator'!$C$11 -> 358.45 | E112: ='Main Calculator'!$C$9*'Main Calculator'!$C$8+(C112/'Main Calculator'!$C$12*'Main Calculator'!$C$10) -> 0
C113: 540 | D113: =C113*'Main Calculator'!$C$11 -> 361.8 | E113: ='Main Calculator'!$C$9*'Main Calculator'!$C$8+(C113/'Main Calculator'!$C$12*'Main Calculator'!$C$10) -> 0
C114: 545 | D114: =C114*'Main Calculator'!$C$11 -> 365.15 | E114: ='Main Calculator'!$C$9*'Main Calculator'!$C$8+(C114/'Main Calculator'!$C$12*'Main Calculator'!$C$10) -> 0
C115: 550 | D115: =C115*'Main Calculator'!$C$11 -> 368.5 | E115: ='Main Calculator'!$C$9*'Main Calculator'!$C$8+(C115/'Main Calculator'!$C$12*'Main Calculator'!$C$10) -> 0
C116: 555 | D116: =C116*'Main Calculator'!$C$11 -> 371.85 | E116: ='Main Calculator'!$C$9*'Main Calculator'!$C$8+(C116/'Main Calculator'!$C$12*'Main Calculator'!$C$10) -> 0
C117: 560 | D117: =C117*'Main Calculator'!$C$11 -> 375.2 | E117: ='Main Calculator'!$C$9*'Main Calculator'!$C$8+(C117/'Main Calculator'!$C$12*'Main Calculator'!$C$10) -> 0
C118: 565 | D118: =C118*'Main Calculator'!$C$11 -> 378.55 | E118: ='Main Calculator'!$C$9*'Main Calculator'!$C$8+(C118/'Main Calculator'!$C$12*'Main Calculator'!$C$10) -> 0
C119: 570 | D119: =C119*'Main Calculator'!$C$11 -> 381.9 | E119: ='Main Calculator'!$C$9*'Main Calculator'!$C$8+(C119/'Main Calculator'!$C$12*'Main Calculator'!$C$10) -> 0
C120: 575 | D120: =C120*'Main Calculator'!$C$11 -> 385.25 | E120: ='Main Calculator'!$C$9*'Main Calculator'!$C$8+(C120/'Main Calculator'!$C$12*'Main Calculator'!$C$10) -> 0
C121: 580 | D121: =C121*'Main Calculator'!$C$11 -> 388.6 | E121: ='Main Calculator'!$C$9*'Main Calculator'!$C$8+(C121/'Main Calculator'!$C$12*'Main Calculator'!$C$10) -> 0
C122: 585 | D122: =C122*'Main Calculator'!$C$11 -> 391.95 | E122: ='Main Calculator'!$C$9*'Main Calculator'!$C$8+(C122/'Main Calculator'!$C$12*'Main Calculator'!$C$10) -> 0
C123: 590 | D123: =C123*'Main Calculator'!$C$11 -> 395.3 | E123: ='Main Calculator'!$C$9*'Main Calculator'!$C$8+(C123/'Main Calculator'!$C$12*'Main Calculator'!$C$10) -> 0
C124: 595 | D124: =C124*'Main Calculator'!$C$11 -> 398.65 | E124: ='Main Calculator'!$C$9*'Main Calculator'!$C$8+(C124/'Main Calculator'!$C$12*'Main Calculator'!$C$10) -> 0
C125: 600 | D125: =C125*'Main Calculator'!$C$11 -> 402 | E125: ='Main Calculator'!$C$9*'Main Calculator'!$C$8+(C125/'Main Calculator'!$C$12*'Main Calculator'!$C$10) -> 0
C126: 605 | D126: =C126*'Main Calculator'!$C$11 -> 405.35 | E126: ='Main Calculator'!$C$9*'Main Calculator'!$C$8+(C126/'Main Calculator'!$C$12*'Main Calculator'!$C$10) -> 0
C127: 610 | D127: =C127*'Main Calculator'!$C$11 -> 408.7 | E127: ='Main Calculator'!$C$9*'Main Calculator'!$C$8+(C127/'Main Calculator'!$C$12*'Main Calculator'!$C$10) -> 0
C128: 615 | D128: =C128*'Main Calculator'!$C$11 -> 412.05 | E128: ='Main Calculator'!$C$9*'Main Calculator'!$C$8+(C128/'Main Calculator'!$C$12*'Main Calculator'!$C$10) -> 0
C129: 620 | D129: =C129*'Main Calculator'!$C$11 -> 415.4 | E129: ='Main Calculator'!$C$9*'Main Calculator'!$C$8+(C129/'Main Calculator'!$C$12*'Main Calculator'!$C$10) -> 0
C130: 625 | D130: =C130*'Main Calculator'!$C$11 -> 418.75 | E130: ='Main Calculator'!$C$9*'Main Calculator'!$C$8+(C130/'Main Calculator'!$C$12*'Main Calculator'!$C$10) -> 0
C131: 630 | D131: =C131*'Main Calculator'!$C$11 -> 422.1 | E131: ='Main Calculator'!$C$9*'Main Calculator'!$C$8+(C131/'Main Calculator'!$C$12*'Main Calculator'!$C$10) -> 0
C132: 635 | D132: =C132*'Main Calculator'!$C$11 -> 425.45 | E132: ='Main Calculator'!$C$9*'Main Calculator'!$C$8+(C132/'Main Calculator'!$C$12*'Main Calculator'!$C$10) -> 0
C133: 640 | D133: =C133*'Main Calculator'!$C$11 -> 428.8 | E133: ='Main Calculator'!$C$9*'Main Calculator'!$C$8+(C133/'Main Calculator'!$C$12*'Main Calculator'!$C$10) -> 0
C134: 645 | D134: =C134*'Main Calculator'!$C$11 -> 432.15 | E134: ='Main Calculator'!$C$9*'Main Calculator'!$C$8+(C134/'Main Calculator'!$C$12*'Main Calculator'!$C$10) -> 0
C135: 650 | D135: =C135*'Main Calculator'!$C$11 -> 435.5 | E135: ='Main Calculator'!$C$9*'Main Calculator'!$C$8+(C135/'Main Calculator'!$C$12*'Main Calculator'!$C$10) -> 0
C136: 655 | D136: =C136*'Main Calculator'!$C$11 -> 438.85 | E136: ='Main Calculator'!$C$9*'Main Calculator'!$C$8+(C136/'Main Calculator'!$C$12*'Main Calculator'!$C$10) -> 0
C137: 660 | D137: =C137*'Main Calculator'!$C$11 -> 442.2 | E137: ='Main Calculator'!$C$9*'Main Calculator'!$C$8+(C137/'Main Calculator'!$C$12*'Main Calculator'!$C$10) -> 0
C138: 665 | D138: =C138*'Main Calculator'!$C$11 -> 445.55 | E138: ='Main Calculator'!$C$9*'Main Calculator'!$C$8+(C138/'Main Calculator'!$C$12*'Main Calculator'!$C$10) -> 0
C139: 670 | D139: =C139*'Main Calculator'!$C$11 -> 448.9 | E139: ='Main Calculator'!$C$9*'Main Calculator'!$C$8+(C139/'Main Calculator'!$C$12*'Main Calculator'!$C$10) -> 0
C140: 675 | D140: =C140*'Main Calculator'!$C$11 -> 452.25 | E140: ='Main Calculator'!$C$9*'Main Calculator'!$C$8+(C140/'Main Calculator'!$C$12*'Main Calculator'!$C$10) -> 0
C141: 680 | D141: =C141*'Main Calculator'!$C$11 -> 455.6 | E141: ='Main Calculator'!$C$9*'Main Calculator'!$C$8+(C141/'Main Calculator'!$C$12*'Main Calculator'!$C$10) -> 0
C142: 685 | D142: =C142*'Main Calculator'!$C$11 -> 458.95 | E142: ='Main Calculator'!$C$9*'Main Calculator'!$C$8+(C142/'Main Calculator'!$C$12*'Main Calculator'!$C$10) -> 0
C143: 690 | D143: =C143*'Main Calculator'!$C$11 -> 462.3 | E143: ='Main Calculator'!$C$9*'Main Calculator'!$C$8+(C143/'Main Calculator'!$C$12*'Main Calculator'!$C$10) -> 0
C144: 695 | D144: =C144*'Main Calculator'!$C$11 -> 465.65 | E144: ='Main Calculator'!$C$9*'Main Calculator'!$C$8+(C144/'Main Calculator'!$C$12*'Main Calculator'!$C$10) -> 0
C145: 700 | D145: =C145*'Main Calculator'!$C$11 -> 469 | E145: ='Main Calculator'!$C$9*'Main Calculator'!$C$8+(C145/'Main Calculator'!$C$12*'Main Calculator'!$C$10) -> 0
C146: 705 | D146: =C146*'Main Calculator'!$C$11 -> 472.35 | E146: ='Main Calculator'!$C$9*'Main Calculator'!$C$8+(C146/'Main Calculator'!$C$12*'Main Calculator'!$C$10) -> 0
C147: 710 | D147: =C147*'Main Calculator'!$C$11 -> 475.7 | E147: ='Main Calculator'!$C$9*'Main Calculator'!$C$8+(C147/'Main Calculator'!$C$12*'Main Calculator'!$C$10) -> 0
C148: 715 | D148: =C148*'Main Calculator'!$C$11 -> 479.05 | E148: ='Main Calculator'!$C$9*'Main Calculator'!$C$8+(C148/'Main Calculator'!$C$12*'Main Calculator'!$C$10) -> 0
C149: 720 | D149: =C149*'Main Calculator'!$C$11 -> 482.4 | E149: ='Main Calculator'!$C$9*'Main Calculator'!$C$8+(C149/'Main Calculator'!$C$12*'Main Calculator'!$C$10) -> 0
C150: 725 | D150: =C150*'Main Calculator'!$C$11 -> 485.75 | E150: ='Main Calculator'!$C$9*'Main Calculator'!$C$8+(C150/'Main Calculator'!$C$12*'Main Calculator'!$C$10) -> 0
C151: 730 | D151: =C151*'Main Calculator'!$C$11 -> 489.1 | E151: ='Main Calculator'!$C$9*'Main Calculator'!$C$8+(C151/'Main Calculator'!$C$12*'Main Calculator'!$C$10) -> 0
C152: 735 | D152: =C152*'Main Calculator'!$C$11 -> 492.45 | E152: ='Main Calculator'!$C$9*'Main Calculator'!$C$8+(C152/'Main Calculator'!$C$12*'Main Calculator'!$C$10) -> 0
C153: 740 | D153: =C153*'Main Calculator'!$C$11 -> 495.8 | E153: ='Main Calculator'!$C$9*'Main Calculator'!$C$8+(C153/'Main Calculator'!$C$12*'Main Calculator'!$C$10) -> 0
C154: 745 | D154: =C154*'Main Calculator'!$C$11 -> 499.15 | E154: ='Main Calculator'!$C$9*'Main Calculator'!$C$8+(C154/'Main Calculator'!$C$12*'Main Calculator'!$C$10) -> 0
C155: 750 | D155: =C155*'Main Calculator'!$C$11 -> 502.5 | E155: ='Main Calculator'!$C$9*'Main Calculator'!$C$8+(C155/'Main Calculator'!$C$12*'Main Calculator'!$C$10) -> 0
C156: 755 | D156: =C156*'Main Calculator'!$C$11 -> 505.85 | E156: ='Main Calculator'!$C$9*'Main Calculator'!$C$8+(C156/'Main Calculator'!$C$12*'Main Calculator'!$C$10) -> 0
C157: 760 | D157: =C157*'Main Calculator'!$C$11 -> 509.2 | E157: ='Main Calculator'!$C$9*'Main Calculator'!$C$8+(C157/'Main Calculator'!$C$12*'Main Calculator'!$C$10) -> 0
C158: 765 | D158: =C158*'Main Calculator'!$C$11 -> 512.55 | E158: ='Main Calculator'!$C$9*'Main Calculator'!$C$8+(C158/'Main Calculator'!$C$12*'Main Calculator'!$C$10) -> 0
C159: 770 | D159: =C159*'Main Calculator'!$C$11 -> 515.9 | E159: ='Main Calculator'!$C$9*'Main Calculator'!$C$8+(C159/'Main Calculator'!$C$12*'Main Calculator'!$C$10) -> 0
C160: 775 | D160: =C160*'Main Calculator'!$C$11 -> 519.25 | E160: ='Main Calculator'!$C$9*'Main Calculator'!$C$8+(C160/'Main Calculator'!$C$12*'Main Calculator'!$C$10) -> 0
C161: 780 | D161: =C161*'Main Calculator'!$C$11 -> 522.6 | E161: ='Main Calculator'!$C$9*'Main Calculator'!$C$8+(C161/'Main Calculator'!$C$12*'Main Calculator'!$C$10) -> 0
C162: 785 | D162: =C162*'Main Calculator'!$C$11 -> 525.95 | E162: ='Main Calculator'!$C$9*'Main Calculator'!$C$8+(C162/'Main Calculator'!$C$12*'Main Calculator'!$C$10) -> 0
C163: 790 | D163: =C163*'Main Calculator'!$C$11 -> 529.3 | E163: ='Main Calculator'!$C$9*'Main Calculator'!$C$8+(C163/'Main Calculator'!$C$12*'Main Calculator'!$C$10) -> 0
C164: 795 | D164: =C164*'Main Calculator'!$C$11 -> 532.65 | E164: ='Main Calculator'!$C$9*'Main Calculator'!$C$8+(C164/'Main Calculator'!$C$12*'Main Calculator'!$C$10) -> 0
C165: 800 | D165: =C165*'Main Calculator'!$C$11 -> 536 | E165: ='Main Calculator'!$C$9*'Main Calculator'!$C$8+(C165/'Main Calculator'!$C$12*'Main Calculator'!$C$10) -> 0
C166: 805 | D166: =C166*'Main Calculator'!$C$11 -> 539.35 | E166: ='Main Calculator'!$C$9*'Main Calculator'!$C$8+(C166/'Main Calculator'!$C$12*'Main Calculator'!$C$10) -> 0
C167: 810 | D167: =C167*'Main Calculator'!$C$11 -> 542.7 | E167: ='Main Calculator'!$C$9*'Main Calculator'!$C$8+(C167/'Main Calculator'!$C$12*'Main Calculator'!$C$10) -> 0
C168: 815 | D168: =C168*'Main Calculator'!$C$11 -> 546.05 | E168: ='Main Calculator'!$C$9*'Main Calculator'!$C$8+(C168/'Main Calculator'!$C$12*'Main Calculator'!$C$10) -> 0
C169: 820 | D169: =C169*'Main Calculator'!$C$11 -> 549.4 | E169: ='Main Calculator'!$C$9*'Main Calculator'!$C$8+(C169/'Main Calculator'!$C$12*'Main Calculator'!$C$10) -> 0
C170: 825 | D170: =C170*'Main Calculator'!$C$11 -> 552.75 | E170: ='Main Calculator'!$C$9*'Main Calculator'!$C$8+(C170/'Main Calculator'!$C$12*'Main Calculator'!$C$10) -> 0
C171: 830 | D171: =C171*'Main Calculator'!$C$11 -> 556.1 | E171: ='Main Calculator'!$C$9*'Main Calculator'!$C$8+(C171/'Main Calculator'!$C$12*'Main Calculator'!$C$10) -> 0
C172: 835 | D172: =C172*'Main Calculator'!$C$11 -> 559.45 | E172: ='Main Calculator'!$C$9*'Main Calculator'!$C$8+(C172/'Main Calculator'!$C$12*'Main Calculator'!$C$10) -> 0
C173: 840 | D173: =C173*'Main Calculator'!$C$11 -> 562.8 | E173: ='Main Calculator'!$C$9*'Main Calculator'!$C$8+(C173/'Main Calculator'!$C$12*'Main Calculator'!$C$10) -> 0
C174: 845 | D174: =C174*'Main Calculator'!$C$11 -> 566.15 | E174: ='Main Calculator'!$C$9*'Main Calculator'!$C$8+(C174/'Main Calculator'!$C$12*'Main Calculator'!$C$10) -> 0
C175: 850 | D175: =C175*'Main Calculator'!$C$11 -> 569.5 | E175: ='Main Calculator'!$C$9*'Main Calculator'!$C$8+(C175/'Main Calculator'!$C$12*'Main Calculator'!$C$10) -> 0
C176: 855 | D176: =C176*'Main Calculator'!$C$11 -> 572.85 | E176: ='Main Calculator'!$C$9*'Main Calculator'!$C$8+(C176/'Main Calculator'!$C$12*'Main Calculator'!$C$10) -> 0
C177: 860 | D177: =C177*'Main Calculator'!$C$11 -> 576.2 | E177: ='Main Calculator'!$C$9*'Main Calculator'!$C$8+(C177/'Main Calculator'!$C$12*'Main Calculator'!$C$10) -> 0
C178: 865 | D178: =C178*'Main Calculator'!$C$11 -> 579.55 | E178: ='Main Calculator'!$C$9*'Main Calculator'!$C$8+(C178/'Main Calculator'!$C$12*'Main Calculator'!$C$10) -> 0
C179: 870 | D179: =C179*'Main Calculator'!$C$11 -> 582.9 | E179: ='Main Calculator'!$C$9*'Main Calculator'!$C$8+(C179/'Main Calculator'!$C$12*'Main Calculator'!$C$10) -> 0
C180: 875 | D180: =C180*'Main Calculator'!$C$11 -> 586.25 | E180: ='Main Calculator'!$C$9*'Main Calculator'!$C$8+(C180/'Main Calculator'!$C$12*'Main Calculator'!$C$10) -> 0
C181: 880 | D181: =C181*'Main Calculator'!$C$11 -> 589.6 | E181: ='Main Calculator'!$C$9*'Main Calculator'!$C$8+(C181/'Main Calculator'!$C$12*'Main Calculator'!$C$10) -> 0
C182: 885 | D182: =C182*'Main Calculator'!$C$11 -> 592.95 | E182: ='Main Calculator'!$C$9*'Main Calculator'!$C$8+(C182/'Main Calculator'!$C$12*'Main Calculator'!$C$10) -> 0
C183: 890 | D183: =C183*'Main Calculator'!$C$11 -> 596.3 | E183: ='Main Calculator'!$C$9*'Main Calculator'!$C$8+(C183/'Main Calculator'!$C$12*'Main Calculator'!$C$10) -> 0
C184: 895 | D184: =C184*'Main Calculator'!$C$11 -> 599.65 | E184: ='Main Calculator'!$C$9*'Main Calculator'!$C$8+(C184/'Main Calculator'!$C$12*'Main Calculator'!$C$10) -> 0
C185: 900 | D185: =C185*'Main Calculator'!$C$11 -> 603 | E185: ='Main Calculator'!$C$9*'Main Calculator'!$C$8+(C185/'Main Calculator'!$C$12*'Main Calculator'!$C$10) -> 0
C186: 905 | D186: =C186*'Main Calculator'!$C$11 -> 606.35 | E186: ='Main Calculator'!$C$9*'Main Calculator'!$C$8+(C186/'Main Calculator'!$C$12*'Main Calculator'!$C$10) -> 0
C187: 910 | D187: =C187*'Main Calculator'!$C$11 -> 609.7 | E187: ='Main Calculator'!$C$9*'Main Calculator'!$C$8+(C187/'Main Calculator'!$C$12*'Main Calculator'!$C$10) -> 0
C188: 915 | D188: =C188*'Main Calculator'!$C$11 -> 613.05 | E188: ='Main Calculator'!$C$9*'Main Calculator'!$C$8+(C188/'Main Calculator'!$C$12*'Main Calculator'!$C$10) -> 0
C189: 920 | D189: =C189*'Main Calculator'!$C$11 -> 616.4 | E189: ='Main Calculator'!$C$9*'Main Calculator'!$C$8+(C189/'Main Calculator'!$C$12*'Main Calculator'!$C$10) -> 0
C190: 925 | D190: =C190*'Main Calculator'!$C$11 -> 619.75 | E190: ='Main Calculator'!$C$9*'Main Calculator'!$C$8+(C190/'Main Calculator'!$C$12*'Main Calculator'!$C$10) -> 0
C191: 930 | D191: =C191*'Main Calculator'!$C$11 -> 623.1 | E191: ='Main Calculator'!$C$9*'Main Calculator'!$C$8+(C191/'Main Calculator'!$C$12*'Main Calculator'!$C$10) -> 0
C192: 935 | D192: =C192*'Main Calculator'!$C$11 -> 626.45 | E192: ='Main Calculator'!$C$9*'Main Calculator'!$C$8+(C192/'Main Calculator'!$C$12*'Main Calculator'!$C$10) -> 0
C193: 940 | D193: =C193*'Main Calculator'!$C$11 -> 629.8 | E193: ='Main Calculator'!$C$9*'Main Calculator'!$C$8+(C193/'Main Calculator'!$C$12*'Main Calculator'!$C$10) -> 0
C194: 945 | D194: =C194*'Main Calculator'!$C$11 -> 633.15 | E194: ='Main Calculator'!$C$9*'Main Calculator'!$C$8+(C194/'Main Calculator'!$C$12*'Main Calculator'!$C$10) -> 0
C195: 950 | D195: =C195*'Main Calculator'!$C$11 -> 636.5 | E195: ='Main Calculator'!$C$9*'Main Calculator'!$C$8+(C195/'Main Calculator'!$C$12*'Main Calculator'!$C$10) -> 0
C196: 955 | D196: =C196*'Main Calculator'!$C$11 -> 639.85 | E196: ='Main Calculator'!$C$9*'Main Calculator'!$C$8+(C196/'Main Calculator'!$C$12*'Main Calculator'!$C$10) -> 0
C197: 960 | D197: =C197*'Main Calculator'!$C$11 -> 643.2 | E197: ='Main Calculator'!$C$9*'Main Calculator'!$C$8+(C197/'Main Calculator'!$C$12*'Main Calculator'!$C$10) -> 0
C198: 965 | D198: =C198*'Main Calculator'!$C$11 -> 646.55 | E198: ='Main Calculator'!$C$9*'Main Calculator'!$C$8+(C198/'Main Calculator'!$C$12*'Main Calculator'!$C$10) -> 0
C199: 970 | D199: =C199*'Main Calculator'!$C$11 -> 649.9 | E199: ='Main Calculator'!$C$9*'Main Calculator'!$C$8+(C199/'Main Calculator'!$C$12*'Main Calculator'!$C$10) -> 0
C200: 975 | D200: =C200*'Main Calculator'!$C$11 -> 653.25 | E200: ='Main Calculator'!$C$9*'Main Calculator'!$C$8+(C200/'Main Calculator'!$C$12*'Main Calculator'!$C$10) -> 0
C201: 980 | D201: =C201*'Main Calculator'!$C$11 -> 656.6 | E201: ='Main Calculator'!$C$9*'Main Calculator'!$C$8+(C201/'Main Calculator'!$C$12*'Main Calculator'!$C$10) -> 0
C202: 985 | D202: =C202*'Main Calculator'!$C$11 -> 659.95 | E202: ='Main Calculator'!$C$9*'Main Calculator'!$C$8+(C202/'Main Calculator'!$C$12*'Main Calculator'!$C$10) -> 0
C203: 990 | D203: =C203*'Main Calculator'!$C$11 -> 663.3 | E203: ='Main Calculator'!$C$9*'Main Calculator'!$C$8+(C203/'Main Calculator'!$C$12*'Main Calculator'!$C$10) -> 0
... 2 more rows
